Cogmind - Beta 17 @@@ ROGUE MODE // 2026.08.09 @ 03:39:55 Player: 4R-ZE3 Result: Destroyed by as-79403 with Assembled Rifle Performance ------------- Evolutions (0) 0 Regions Visited (2) 400 Robots Destroyed (15) 75 Value Destroyed (360) 360 Prototype IDs (0) 0 Alien Tech Used (0) 0 Bonus (0) 0 TOTAL SCORE: 835 Bonus ------- None Cogmind --------- Core Integrity 0/250 Matter 268/300 Energy 100/100 System Corruption 1% Temperature Cool (0) Movement Rolling (115) Ox1 Location -10/Mines Parts ------- > --- POWER (1) -------- (None) > --- PROPULSION (2) --- Compact Wheel > --- UTILITY (2) ------ Heat Sink Large Storage Unit > --- WEAPON (2) ------- Beam Rifle Mini Grenade Launcher > --- INVENTORY (15) --- Ion Engine Ion Engine Light Ion Engine Aluminum Leg Aluminum Leg Aluminum Leg Aluminum Leg Aluminum Leg Beam Rifle Beam Rifle Beam Rifle Light Assault Rifle Mini Grenade Launcher Mini Grenade Launcher Mining Claw Peak State ------------ > --- POWER ------------ Ion Engine > --- PROPULSION ------- Wheel Compact Wheel > --- UTILITY ---------- Heat Sink Large Storage Unit > --- WEAPON ----------- Beam Rifle Beam Rifle > --- INVENTORY -------- Ion Engine Ion Engine Light Ion Engine Aluminum Leg Aluminum Leg Aluminum Leg Aluminum Leg Aluminum Leg Flight Unit Flight Unit Beam Rifle Beam Rifle Mini Grenade Launcher Mini Grenade Launcher Mini Grenade Launcher [Rating: 11] Favorites ----------- Power Ion Engine Engine Ion Engine Propulsion Light Treads Treads Light Treads Wheel Wheel Utility Large Storage Unit Device Heat Sink Storage Large Storage Unit Weapon Beam Rifle Energy Gun Beam Rifle Ballistic Gun Light Assault Rifle Launcher Mini Grenade Launcher Slashing Weapon Mining Claw Build | -11 -10 -10 ------- Run | Yrd Mat Min Slots Evolved . | . . . Power . | . . . Propulsion . | . . . Utility . | . . . Weapon . | . . . Parts Attached 21 | 5 15 1 Power 2 | 1 1 . Engine 2 | 1 1 . Core . | . . . Reactor . | . . . Propulsion 7 | 2 5 . Treads 2 | 2 . . Leg . | . . . Wheel 5 | . 5 . Hover . | . . . Flight . | . . . Utility 4 | 1 3 . Device 2 | . 2 . Storage 2 | 1 1 . Processor . | . . . Hackware . | . . . Protection . | . . . Artifact . | . . . Weapon 8 | 1 6 1 Energy Gun 4 | . 4 . Energy Cannon . | . . . Ballistic Gun 2 | 1 1 . Ballistic Cannon . | . . . Launcher 1 | . . 1 Special Weapon . | . . . Impact Weapon . | . . . Slashing Weapon 1 | . 1 . Piercing Weapon . | . . . Special Melee Weapon . | . . . Unidentified Prototypes . | . . . Parts Lost 7 | . 5 2 Power 1 | . . 1 Propulsion 3 | . 2 1 Utility 1 | . 1 . Weapon 2 | . 2 . Highest Loss Streak 5 | . 5 2 To Critical Strikes . | . . . Average Backups 10 | 1 9 14 Power 2 | . 2 3 Propulsion 4 | . 5 5 Utility . | . . . Weapon 3 | . 2 6 Tool/Special . | . . . Unused Backups 17 | . 5 12 Power 2 | . . 2 Propulsion 8 | . 3 5 Utility . | . . . Weapon 7 | . 2 5 Tool/Special . | . . . Average Slot Usage (%) 89 | . 87 98 Engine 13 | . 14 13 Treads 8 | . 11 . Wheel 18 | . 15 27 Device 9 | . 8 14 Storage 14 | . 14 14 Energy Gun 17 | . 14 27 Ballistic Gun 5 | . 7 . Peak Build Rating 11 | 5 11 11 Average Rating 8 | 3 7 10 On Entrance 5 | . 5 10 Avg Prop Armor Cover (%) . | . . . Naked Turns . | . . . Heaviest Build 32 | 11 32 32 Greatest Support 40 | 40 40 26 Greatest Overweight (x) 1 | . 1 1 Average Overweight (x) . | . . 1 Largest Inventory Capacity 15 | 8 15 15 Average Capacity 14 | 6 14 15 Most Carried 15 | 3 15 15 Average Carried 10 | 1 9 14 Final Capacity 15 | 8 15 15 Final Carried 15 | 3 14 15 Class Distribution -------------------- 92% | Mutant 7% | Scavenger-Mutant Dominant Class ---------------- Mutant | -10/Materials Mutant | -10/Mines Resources | -11 -10 -10 ----------- Run | Yrd Mat Min Matter Collected 440 | 219 193 28 Remotely . | . . . Salvage Created 527 | . 500 27 Parts 35 | . 33 2 Haulers Intercepted . | . . . Recyclers Shooed 2 | . 2 . Parts Field Recycled . | . . . Retrieved Matter . | . . . Parts Self-Destructed . | . . . Prevented . | . . . Parts Restored . | . . . Kills | -11 -10 -10 ------- Run | Yrd Mat Min Combat Hostiles Destroyed 15 | . 12 3 Guns 12 | . 12 . AOE 3 | . . 3 Classes Destroyed 6 | . 4 2 Worker 1 | . . 1 Tunneler 1 | . 1 . Recycler 1 | . 1 . Swarmer 3 | . 3 . Grunt 9 | . 9 . Assembled 3 | . . 3 Best Kill Streak 4 | . 4 4 Combat Bots Only 4 | . 4 3 Max Kills in Single Turn 2 | . 1 2 Gunslinging . | . . . Exploded 2 | . . 2 Melee . | . . . Uniques/NPCs Destroyed . | . . . Combat | -11 -10 -10 -------- Run | Yrd Mat Min Hostile Shots Fired 114 | . 100 14 Missed 26 | . 23 3 Hits 88 | . 77 11 Melee 2 | . . 2 Projectile 86 | . 77 9 Damage Taken 1027 | . 762 265 Core 260 | . 146 114 Absorbed by Shields . | . . . Core Remaining (%) 100 | 100 . . Volleys Fired 70 | . 63 7 Largest 2 | . 2 2 Hottest 112 | . 112 112 Shots Fired 101 | . 89 12 Gun 99 | . 89 10 Cannon . | . . . Launcher 2 | . . 2 Special . | . . . Kinetic 67 | . 67 . Thermal 32 | . 22 10 Explosive 2 | . . 2 Electromagnetic . | . . . Robot Hit Streak 11 | . 11 3 Robot Miss Streak 3 | . 3 2 Penetration Max . | . . . Secondary Targets 1 | . 1 . Max Gunslinging Chain 1 | . 1 . Shots Hit Robots 70 | . 65 5 Core Hits 35 | . 28 7 Critical Kills . | . . . Critical Parts Destroyed . | . . . Critical Strikes 1 | . 1 . Burn 1 | . 1 . Melee Attacks 1 | . 1 . Impact . | . . . Slashing 1 | . 1 . Piercing . | . . . Sneak Attacks . | . . . Combat Hostiles . | . . . Follow-up Attacks . | . . . Damage Inflicted 903 | . 642 261 Guns 699 | . 642 57 Cannons . | . . . Explosions 204 | . . 204 Melee . | . . . Ramming . | . . . Kinetic 413 | . 413 . Thermal 286 | . 229 57 Explosive 204 | . . 204 Electromagnetic . | . . . Impact . | . . . Slashing . | . . . Piercing . | . . . Highest Corruption 1 | . . 1 Average Corruption 1 | . . 1 Corruption Purged . | . . . Corruption Blocked . | . . . Overload Shots . | . . . Overflow Damage . | . . . Projectiles . | . . . Explosions . | . . . Melee . | . . . Knockbacks . | . . . Impact . | . . . Kinetic . | . . . Secondary . | . . . Self-Inflicted Damage 52 | . . 52 Shots 2 | . . 2 Rammed . | . . . Targets Rammed . | . . . Kicked . | . . . Crushed . | . . . Highest Temperature 108 | . 108 63 Average Temperature 31 | . 32 28 Received Heat Transfer 322 | . 282 40 Siege Activations . | . . . Martial Activations . | . . . Shielding Activations . | . . . Robots Disrupted . | . . . Combat Hostiles . | . . . Robots Corrupted . | . . . Combat Hostiles . | . . . Parts Fried . | . . . Impact Corruptions . | . . . Robots Melted . | . . . Combat Hostiles . | . . . Parts Melted 1 | . 1 . Heat Transferred 802 | . 654 148 Parts Sabotaged . | . . . Parts Stolen . | . . . Parts Stripped . | . . . Power Chain Reactions . | . . . Alert | -11 -10 -10 ------- Run | Yrd Mat Min Maximum Alert Level . | . . . Low Security (%) 100 | 100 100 100 Level 1 . | . . . Level 2 . | . . . Level 3 . | . . . Level 4 . | . . . Level 5 . | . . . High Security . | . . . Max Security . | . . . Peak Influence 170 | . 170 32 Initial 32 | . . 32 Average 50 | . 70 8 Influence Increases 419 | . 392 27 Destroy 0b10 Robot/C 240 | . 240 . Destroy 0b10 Robot/NC 15 | . 10 5 Destroy Leader 60 | . 60 . Successful Hack 5 | . 5 . Select Force Hacks 30 | . 30 . Disable Machine 15 | . . 15 Destroy Structure 9 | . 2 7 Lose Combat Pursuer 45 | . 45 . Influence Decreases 417 | . 308 109 Entered New Map 52 | . . 52 Time Decay 300 | . 258 42 Lost Part 65 | . 50 15 Squads Dispatched 5 | . 5 . Investigation 2 | . 2 . Extermination . | . . . Reinforcement 3 | . 3 . Assault . | . . . Garrison . | . . . Intercept . | . . . Searches Triggered . | . . . Construction Impeded . | . . . Haulers Reinforced . | . . . Active Scanning Responses . | . . . Cargo Convoy Interrupts . | . . . Stealth | -11 -10 -10 --------- Run | Yrd Mat Min Distress Signals 2 | . 2 . Communications Jammed . | . . . Distress Signals . | . . . Times Spotted 37 | . 25 12 Peak Tracking Total 9 | . 6 9 Tactical Retreats 1 | . 1 . ECM-based Alert Blocks 1 | . 1 . Traps | -11 -10 -10 ------- Run | Yrd Mat Min Traps Triggered 1 | . 1 . Indirectly . | . . . Trap Hack Attempts . | . . . Triggered . | . . . Disarmed . | . . . Reprogrammed . | . . . Reused . | . . . Traps Extracted . | . . . Installed . | . . . Triggered . | . . . Machines | -11 -10 -10 ---------- Run | Yrd Mat Min Machines Disabled 1 | . . 1 Max in Single Turn . | . . . Machines Repaired . | . . . Machines Dismantled . | . . . Machines Sabotaged . | . . . Overloaded Fab Kills . | . . . Hacking | -11 -10 -10 --------- Run | Yrd Mat Min Machines Accessed 2 | . 2 . Terminals 1 | . 1 . Fabricators . | . . . Repair Stations . | . . . Recycling Units 1 | . 1 . Scanalyzers . | . . . Garrison Access . | . . . Total Hacks 3 | . 3 . Successful 3 | . 3 . Failed . | . . . Catastrophic . | . . . Database Lockouts . | . . . Manual 2 | . 2 . Terminals 1 | . 1 . Fabricators . | . . . Repair Stations . | . . . Recycling Units 2 | . 2 . Scanalyzers . | . . . Garrison Access . | . . . Terminal Hacks . | . . . Fabricator Hacks . | . . . Repair Station Hacks . | . . . Recycling Unit Hacks 1 | . 1 . Retrieve Components 1 | . 1 . Scanalyzer . | . . . Garrison Access Hacks . | . . . Unauthorized Hacks 2 | . 2 . Terminals 1 | . 1 . Botnet 1 | . 1 . Fabricators . | . . . Repair Stations . | . . . Recycling Units 1 | . 1 . Tunnel 1 | . 1 . Scanalyzers . | . . . Garrison Access . | . . . Data Cores Recovered . | . . . Used . | . . . Hacking Detections 1 | . 1 . Full Trace Events . | . . . Feedback Events . | . . . Feedback Blocked . | . . . Robot Schematics Acquired . | . . . Robots Built . | . . . Authchips . | . . . Time . | . . . Total Robot Build Rating . | . . . Part Schematics Acquired . | . . . Parts Built . | . . . Authchips . | . . . Time . | . . . Total Part Build Rating . | . . . Part Studies Acquired . | . . . Parts Repaired . | . . . Time . | . . . Parts Recycled . | . . . Recycled Matter . | . . . Retrieved Matter . | . . . Retrieved Components 1 | . 1 . Parts Scanalyzed . | . . . Part Schematics Acquired . | . . . Parts Damaged . | . . . Bothacking | -11 -10 -10 ------------ Run | Yrd Mat Min Used RIF Installer . | . . . Robots Hacked . | . . . Non-combat . | . . . Combat . | . . . Robot Hacks Applied . | . . . Relay Couplers Released . | . . . Fabnet Peak Effective % . | . . . Robots Rewired . | . . . Allies Hacked . | . . . Hacks Repelled . | . . . Allies | -11 -10 -10 -------- Run | Yrd Mat Min Total Allies 1 | . . 1 Largest Group 1 | . . 1 Highest-Rated Group 31 | . . 31 Highest-Rated Ally 31 | . . 31 Total Orders . | . . . Ally Attacks 11 | . . 11 Total Damage 149 | . . 149 Kills 2 | . . 2 Allies Corrupted . | . . . Allies Melted . | . . . Intel | -11 -10 -10 ------- Run | Yrd Mat Min Active Infowar (turns) 2 | . 2 . ECM 2 | . 2 . Robot Analysis Total . | . . . Derelict Logs Recovered . | . . . Drone Launches . | . . . Drone Recoveries . | . . . Exploration | -11 -10 -10 ------------- Run | Yrd Mat Min Turns Passed 860 | 78 600 182 Spaces Moved 524 | 44 328 152 Core 2 | 2 . . Treads 137 | 42 95 . Legs . | . . . Wheels 385 | . 233 152 Hover . | . . . Flight . | . . . Fastest Speed 50 | 50 90 105 Average Speed 118 | 155 119 105 Slowest Speed 160 | 160 160 115 Overloaded Moves . | . . . Propulsion Burnouts . | . . . Robots Hopped . | . . . Potential Cave-ins . | . . . Cave-ins Triggered . | . . . Exploration Rate (%) 32 | 4 64 28 Regions Visited 2 Branch Regions 1 Pre-discovered Areas 2 | . 1 1 Known Exits Taken . | . . . Unknown Exits Taken 2 | 1 1 . Scrap Searched . | . . . Spaces Dug 1 | . 1 . Terrain Destroyed 8 | . 1 7 Melee 1 | . 1 . Projectile . | . . . AOE 7 | . . 7 Terrain Rammed . | . . . Walls Destroyed . | . . . Machines Disabled . | . . . Actions | -11 -10 -10 --------- Run | Yrd Mat Min Total 677 | 51 464 162 Wait 29 | . 29 . Move 522 | 43 327 152 Hop . | . . . Pick Up 22 | 3 18 1 Fast Attach 10 | 5 5 . Attach 3 | . 3 . Detach . | . . . Swap 9 | . 7 2 Drop 11 | . 11 . Fire 70 | . 63 7 Melee 1 | . 1 . Ram . | . . . Kick . | . . . Crush . | . . . Escape Stasis . | . . . Rewire . | . . . Trap . | . . . Miscellaneous . | . . . Route ------- -11/Scrapyard -10/Materials (discovered 3 exits: [*Mat] / [*Min x2]) -10/Mines (discovered 1 exit: [*Mat]) History --------- Turn | Location | Event 13 | -11/Scrapyard | Discovered new exit (range 15) 79 | -11/Scrapyard | Entered Materials 229 | -10/Materials | Discovered new exit (range 4) 321 | -10/Materials | Build established: Mutant 326 | -10/Materials | Core integrity fell below 50% 375 | -10/Materials | Lost 5 parts (2n1u2w) 392 | -10/Materials | Discovered new exit (range 7) 500 | -10/Materials | Discovered new exit (range 11) 679 | -10/Materials | Entered Mines 752 | -10/Mines | Discovered new exit (range 10) 765 | -10/Mines | Escorted by a lone wolf Derelict 827 | -10/Mines | Assembled infested the area 832 | -10/Mines | Assisted by a Guerilla fighting off Assembled 861 | -10/Mines | Core integrity fell below 20% 861 | -10/Mines | Destroyed by as-79403 with Assembled Rifle Last Messages --------------- 00836_ K-01 Serf cleans the Matter Pump. 00838_ as-95319 sneak attacks. 00838_ U-05 Engineer destroyed. 00839_ K-01 Serf cleans the Matter Pump. 00841_ Matter Pump disabled. 00843_ K-01 Serf collects debris. 00849_ K-01 Serf destroyed. 00852_ Wheel destroyed. 00852_ System corrupted by crushing effect (+1). 00853_ K-01 Serf collects debris. 00854_ as-95319 destroyed. 00855_ as-41645 sneak attacks. 00856_ as-28923 destroyed. 00857_ Ion Engine destroyed. 00858_ Y0-UTE(g): "Mission, incomplete...*fzzt*" 00858_ Y0-UTE(g) destroyed. 00858_ as-41645 destroyed. 00858_ K-01 Serf destroyed. 00860_ as-97000 destroyed. 00860_ as-22665 destroyed. Map ----- +----------------------------------------------------+ | ?????????????????????????????????????????????????? | | ?????????????????????????????????????????????????? | | ?????????????????????????????????????????????????? | | ?????????????????????????????????????????????????? | | ?????????????????????????????????????????????????? | | ?????????????????????????????????????????????????? | | ???????????????????? ????????????????????????????? | | ?????????????????? ????????????????????????????? | | ??????????????????? ????????????????????????????? | | ??????????????????? ????????????????????????????? | | ??????????????????? ??????????????????????????? | | ??????????????????? #??????????????????????????? | | ???????????????????# #??????????????????????????? | | ???????????????????#a #??????????????????????????? | | ???????????????????# #??????????????????????????? | | ???????????????????#a #??????????????????????????? | | ?????????????????###%a#??????????????????????????? | | ???????????????### ! #?????????????????????????? | | ??????????????## =%##????????????????????????? | | ??????????????# " ! ##??????????????????????? | | ??????????????# "" ###????????????????????? | | ?????????????## "" % ##???????????????????? | | ?????????????# a [%* #???????????????????? | | ????????????## * ##???????????????????? | | ???????????## % ! #????????????????????? | | ???????????# ## @ ##???????????????????? | | ???????????# ##### ##??????????????????? | | ???????????# ????# #???????????######?? | | ???????????## #????## # #??????????## ##? | | ????????????###??????#### ##?????????# #? | | ????????????????????????#### ##????????# #? | | ???????????????????????????## ##??????## ##? | | #################??????????## ##????## ###?? | | ##????????## ###### ##### | | #####??### | | ########### #### ## ##### | | ##???????### ## ### ### #???? | | #?????????## ## ##?## ##### ##??? | | #??????????### ########???#####?# #??? | | ##???????????#########???????#######??# """ #??? | | #???????????????????????????# #### """ #??? | | =##??????????????????????????# """ #??? | | * ##?????????????????????????# #### #??? | | = #?????????????????????????# #??# #??? | | =% #????????????????????????# #??#######??? | | #????????????????????????#######???????????? | | ##??????????????????????????????????????????? | | ######???????????????????????????????????????????? | | ?????????????????????????????????????????????????? | | ?????????????????????????????????????????????????? | +----------------------------------------------------+ Best States ------------- Heat Dissipation 35 Energy Generation 10 Energy Capacity 250 Matter Stores 300 Matter Capacity 300 Sight Range 16 Terrain Scan Density 10 ECM Strength 1 Evasion (%) 42 Recoil Reduction 2 Item Schematics ----------------- None Robot Schematics ------------------ None Fabricated ------------ Nothing Repaired ---------- Nothing Studied --------- None Alien Tech Used ----------------- None Achievements -------------- None Challenges ------------ None Game ------ Seed GravmagRiotObfuscator Manual? 0 Play Time 00:07:19 Cumulative 207.8 hours Start 2026.08.09 @ 03:34:10 End 2026.08.09 @ 03:39:55 Sessions 1 Manual Loads 0 Difficulty Rogue Special Mode None Game No. 218 Rogue 164 Adventurer 54 Explorer 0 Win Type - Total 9 Types 5/0/1/1/0/0/0/1/0/1 Lore% 71 Gallery% 60 Achievement% 57 Wizard Run 0 Options --------- Layout 1 ASCII 0 Keyboard 0 Movement Mouse Keybinds 1 Fullscreen 2 Font 32/Tamsyn Map View 50x35 Zoom Use 0% Tactical HUD 1 Map Filters NONE Filters NONE Steam 1 RUN: 239d7e0d-b177-4347-83ba-cedbb4b17f5d